fUSD/lending_fUSD_20250906
["ID","MTS","AMOUNT","RATE_DAILY","PERIOD"]
[383792412,1757118637895,-1200.0,0.000429,15]
[383792413,1757118637906,-151.45,0.0004349,2]
[383792414,1757118637917,-84591.6388679,0.000435,120]
[383792415,1757118637927,-162.0,0.000435,120]
[383792416,1757118637938,-151.72,0.00043567,2]
[383792417,1757118637951,-9999.99,0.00043567,2]
[383792418,1757118637961,-388.49,0.000449,7]
[383792419,1757118637972,-1854.12,0.000449,2]
[383792421,1757118637983,-303.51,0.000449,2]
[383792423,1757118637993,-150.0,0.00044955,93]
[383792425,1757118638003,-150.0,0.00044955,93]
[383792427,1757118638013,-151.45,0.0004499,2]
[383792430,1757118638023,-30298.56380059,0.00045,2]
[383792432,1757118638033,-13000.0,0.00045,120]
[383792434,1757118638043,-1436.3,0.00045,2]
[383792436,1757118638053,-1718.16,0.00045,2]
[383792438,1757118638064,-150.99,0.00045,2]
[383792440,1757118638073,-9257.11,0.00045,2]
[383792442,1757118638083,-2969.84,0.00045,120]
[383792444,1757118638093,-150.0,0.00045368,120]
[383792446,1757118638103,-3509.78464577,0.000458,2]
[383792448,1757118638113,-37532.63,0.000458,2]
[383792450,1757118638123,-469.39,0.00045821,30]
[383792452,1757118638133,-801.77,0.00045821,30]
[383792455,1757118638143,-161.79,0.00045821,30]
[383792457,1757118638153,-801.77,0.00045821,30]
[383792459,1757118638163,-1155.05,0.00045821,2]
[383792461,1757118638176,-499.99,0.00045821,2]
[383792463,1757118638186,-9999.99,0.00045821,2]
[383792465,1757118638196,-429.53,0.00045821,30]
[383792468,1757118638207,-157.12,0.00045835,2]
[383792470,1757118638217,-160.0,0.00046192,7]
[383792472,1757118638227,-580.83598539,0.00046447,2]
[383792474,1757118638237,-500.0,0.00047039,30]
[383792476,1757118638247,-150.0,0.00047599,116]
[383792478,1757118638258,-5281.1428831,0.000476,2]
[383792480,1757118638267,-188.29771104,0.0004795,2]
[383792482,1757118638277,-151.45,0.0004798,2]
[383792485,1757118638287,-77157.2147223,0.0004799,4]
[383792487,1757118638298,-6655.59380556,0.0004799,4]
[383792489,1757118638308,-151.45,0.0004799,2]
[383792491,1757118638318,-151.45,0.0004799,2]
[383792514,1757118638526,-151.45,0.0004799,2]
[383792516,1757118638538,-151.45,0.0004799,2]
[383792518,1757118638547,-151.45,0.0004799,2]
[383792520,1757118638556,-151.45,0.0004799,2]
[383792522,1757118638567,-150.0,0.00047999,118]
[383792524,1757118638577,-711175.88299514,0.00048,120]
[383792526,1757118638587,-5285.17404026,0.0004805,2]
[383792528,1757118638596,-2271.0457815,0.0004815,2]
[383792530,1757118638605,-692.85978172,0.0004815,2]
[383792531,1757118638615,-232.83681126,0.0004825,2]
[383792532,1757118638623,-172.6797974,0.0004825,10]
[383792533,1757118638633,-155.8166202,0.0004835,2]
[383792534,1757118638648,-444.0,0.00048885,120]
[383792535,1757118638657,-1518.54,0.000489,30]
[383792536,1757118638666,-162.0,0.000491,120]
[383792537,1757118638675,-500.0,0.00049401,30]
[383792538,1757118638685,-739.51042284,0.0004999,4]
[383792539,1757118638695,-17675.0,0.0005,120]
[383792540,1757118638704,-4399.25611024,0.0005,120]
[383792541,1757118638713,-1144.3905702,0.0005,2]
[383792542,1757118638722,-2969.84,0.0005,120]
[383792543,1757118638731,-157.12,0.00050928,2]
[383792545,1757118638741,-500.0,0.000514,60]
[383792547,1757118638751,-560.27,0.000514,60]
[383792549,1757118638760,-151.72,0.00052281,2]
[383792551,1757118638770,-579.61362364,0.00053,2]
[383792553,1757118638780,-449.08906687,0.0005331,2]
[383792555,1757118638790,-500.0,0.0005337,120]
[383792557,1757118638800,-162.0,0.000546,120]
[383792559,1757118638810,-580.83598539,0.0005481,2]
[383792561,1757118638819,-1479.02084568,0.0005499,4]
[383792563,1757118638829,-151.45,0.0005499,120]
[383792565,1757118638839,-83590.0,0.00055,15]
[383792567,1757118638848,-2969.84,0.00055,120]
[383792570,1757118638859,-4994.87,0.000558,30]
[383792571,1757118638868,-157.12,0.0005602,2]
[383792574,1757118638878,-323.74,0.000561,14]
[383792575,1757118638887,-150.0,0.0005708,120]
[383792578,1757118638897,-300.0,0.00058171,120]
[383792580,1757118638906,-574.31141038,0.0005909,2]
[383792582,1757118638915,-500.0,0.00059569,120]
[383792584,1757118638926,-1568.0,0.0006,30]
[383792586,1757118638935,-1148.70887772,0.0006,30]
[383792588,1757118638944,-462.6342739,0.0006,2]
[383792590,1757118638954,-2969.84,0.0006,120]
[383792592,1757118638963,-162.0,0.000602,120]
[383792594,1757118638972,-157.12,0.00061113,2]
[383792596,1757118638981,-687.6255987,0.00061246,120]
[383792598,1757118638991,-500.0,0.00062938,120]
[383792600,1757118639000,-580.83598539,0.00063174,2]
[383792602,1757118639010,-2363.5,0.0006406,30]
[383792604,1757118639019,-739.51042284,0.00064095,5]
[383792606,1757118639029,-5000.0,0.00064097,30]
[383792609,1757118639048,-5000.0,0.000641,30]
[383792611,1757118639058,-5000.0,0.00064105,30]
[383792613,1757118639068,-1819.12,0.00064141,30]
[383792615,1757118639078,-2319.45,0.00064143,30]
[383792617,1757118639088,-5000.0,0.00064166,30]
[383792619,1757118639097,-1696.43,0.00064178,30]
[383792621,1757118639107,-175.59,0.00064188,30]
[383792623,1757118639117,-1518.54,0.000642,30]
[383792625,1757118639126,-2126.0,0.00064243,30]
[383792627,1757118639136,-5000.0,0.00064254,30]
[383792629,1757118639146,-5000.0,0.00064337,30]
[383792631,1757118639156,-18486.02,0.00064337,30]
[383792633,1757118639165,-739.51042284,0.00064362,5]
[383792635,1757118639174,-25000.0,0.00064372,30]
[383792637,1757118639184,-739.51042284,0.00064403,5]
[383792639,1757118639194,-151.45,0.00064403,120]
[383792641,1757118639205,-25000.0,0.00064413,30]
[383792643,1757118639215,-5000.0,0.00064482,30]
[383792645,1757118639226,-5000.0,0.00064519,30]
[383792648,1757118639236,-672.47,0.00064538,30]
[383792649,1757118639249,-739.51042284,0.00064581,5]
[383792651,1757118639261,-5000.0,0.00064591,30]
[383792653,1757118639270,-1033.24,0.00064638,30]
[383792655,1757118639280,-2473.51,0.00064694,30]
[383792657,1757118639290,-5000.0,0.00064716,30]
[383792659,1757118639299,-5000.0,0.00064729,30]
[383792662,1757118639309,-2788.07,0.00064773,30]
[383792664,1757118639319,-5000.0,0.000648,30]
[383792665,1757118639328,-2069.98,0.00064814,30]
[383792668,1757118639338,-5000.0,0.00064829,30]
[383792670,1757118639348,-739.51042284,0.00064843,5]
[383792672,1757118639357,-5000.0,0.00064849,30]
[383792674,1757118639367,-150.0,0.00064852,120]
[383792676,1757118639378,-25000.0,0.00064853,30]
[383792678,1757118639387,-2562.7,0.0006486,30]
[383792680,1757118639396,-560.27,0.000649,60]
[383792682,1757118639406,-5000.0,0.00064921,30]
[383792684,1757118639416,-817.41,0.00064936,30]
[383792686,1757118639426,-2562.7,0.0006497,30]
[383792688,1757118639436,-5000.0,0.00064976,30]
[383792690,1757118639445,-151.45,0.0006499,120]
[383792692,1757118639455,-151.45,0.0006499,120]
[383792694,1757118639465,-151.45,0.0006499,120]
[383792696,1757118639474,-151.45,0.0006499,120]
[383792698,1757118639483,-444294.16606295,0.00065,60]
[383792700,1757118639492,-151.0,0.00065,120]
[383792702,1757118639502,-151.0,0.00065,120]
[383792704,1757118639511,-151.0,0.00065,120]
[383792706,1757118639520,-151.0,0.00065,120]
[383792709,1757118639537,-151.0,0.00065,120]
[383792710,1757118639547,-151.0,0.00065,120]
[383792712,1757118639556,-152.792714,0.00065,120]
[383792715,1757118639566,-151.0,0.00065,120]
[383792717,1757118639575,-162.0,0.000657,120]
[383792719,1757118639585,-168.3,0.00065753,120]
[383792721,1757118639594,-13311.30204098,0.00066,30]
[383792723,1757118639603,-10377.3651539,0.00066,30]
[383792725,1757118639614,-486.5180793,0.00066,120]
[383792727,1757118639623,-157.12,0.00066206,2]
[383792729,1757118639633,-4994.87,0.000663,30]
[383792731,1757118639644,-500.0,0.00067207,120]
[383792733,1757118639653,-206.11641776,0.00067345,93]
[383792735,1757118639662,-400.0,0.00067799,120]
[383792737,1757118639677,-400.0,0.00067799,120]
[383792739,1757118639686,-400.0,0.00067799,120]
[383792741,1757118639696,-480.0,0.00067799,120]
[383792743,1757118639706,-314.94169658,0.00067799,120]
[383792746,1757118639715,-181.48193036,0.00067799,120]
[383792749,1757118639725,-5000.0,0.00067972,120]
[383792751,1757118639735,-175.42932374,0.00068726,2]
[383792753,1757118639744,-3382.0,0.00068799,120]
[383792755,1757118639754,-1258.0,0.00068799,120]
[383792757,1757118639764,-4163.0,0.00068799,120]
[383792759,1757118639775,-925.0,0.00068799,120]
[383792761,1757118639784,-2035.0,0.00068799,120]
[383792764,1757118639795,-6164.0,0.00068799,120]
[383792766,1757118639805,-792.978,0.00068799,2]
[383792768,1757118639815,-1300.0,0.00068799,120]
[383792770,1757118639824,-600.0,0.00068799,120]
[383792772,1757118639833,-1577.0,0.00068799,120]
[383792774,1757118639842,-567.0,0.00068799,120]
[383792776,1757118639852,-811.0,0.00068799,2]
[383792778,1757118639861,-154.29723404,0.0006973,60]
[383792780,1757118639871,-200.0,0.000699,25]
[383792782,1757118639881,-300.0,0.00069973,15]
[383792784,1757118639891,-213.0,0.0006999,30]
[383792786,1757118639901,-151.45,0.0006999,120]
[383792788,1757118639911,-151.45,0.0006999,120]
[383792790,1757118639920,-151.45,0.0006999,120]
[383792792,1757118639930,-151.45,0.0006999,120]
[383792794,1757118639939,-151.45,0.0006999,120]
[383792796,1757118639949,-398939.22109955,0.0007,120]
[383792798,1757118639958,-129999.999999,0.0007,30]
[383792800,1757118639967,-151.0,0.0007,120]
[383792802,1757118639977,-151.0,0.0007,120]
[383792804,1757118639987,-290.31896785,0.0007,120]
[383792806,1757118639996,-242.391,0.0007,120]
[383792808,1757118640006,-151.0,0.0007,120]
[383792810,1757118640016,-151.0,0.0007,120]
[383792812,1757118640026,-271.13785514,0.0007,120]
[383792814,1757118640035,-2000.0,0.0007,120]
[383792816,1757118640045,-42127.72404287,0.0007015,2]
[383792818,1757118640054,-157.12,0.00071299,2]
[383792820,1757118640064,-162.0,0.000713,120]
[383792822,1757118640074,-580.83598539,0.00071537,2]
[383792824,1757118640083,-4163.0,0.00071799,120]
[383792826,1757118640092,-923.0,0.00071799,120]
[383792828,1757118640102,-2035.0,0.00071799,120]
[383792830,1757118640111,-6160.0,0.00071799,120]
[383792832,1757118640120,-1300.0,0.00071799,120]
[383792834,1757118640132,-600.0,0.00071799,120]
[383792836,1757118640141,-1577.0,0.00071799,120]
[383792838,1757118640151,-567.0,0.00071799,120]
[383792840,1757118640160,-811.0,0.00071799,2]
[383792842,1757118640169,-246.65549028,0.00072,30]
[383792844,1757118640178,-1518.54,0.00072,30]
[383792846,1757118640188,-500.0,0.00072175,120]
[383792848,1757118640197,-371.12358089,0.00073,120]
[383792850,1757118640206,-213.0,0.0007373,30]
[383792852,1757118640216,-3053.0,0.00074023,120]
[383792854,1757118640225,-1203.0,0.000745,120]
[383792856,1757118640235,-923.0,0.00074799,120]
[383792858,1757118640244,-2875.0,0.00074799,120]
[383792860,1757118640254,-2032.0,0.00074799,120]
[383792862,1757118640263,-1201.45740272,0.00075,120]
[383792864,1757118640273,-1999.99,0.00075,90]
[383792866,1757118640282,-2000.0,0.00075,90]
[383792868,1757118640291,-341.91,0.00075,90]
[383792870,1757118640300,-157.12,0.00076391,2]
[383792872,1757118640310,-560.27,0.000764,60]
[383792874,1757118640319,-250.0,0.00076633,120]
[383792876,1757118640329,-533.39300216,0.000768,120]
[383792878,1757118640339,-162.0,0.000768,120]
[383792881,1757118640348,-213.0,0.0007747,30]
[383792883,1757118640358,-165.12,0.00077531,120]
[383792885,1757118640367,-500.0,0.00077621,120]
[383792886,1757118640377,-500.0,0.0007963,120]
[383792888,1757118640386,-2578.11942912,0.000799,120]
[383792890,1757118640396,-151.0,0.000799,120]
[383792893,1757118640406,-200.0,0.000799,29]
[383792895,1757118640415,-580.83598539,0.000799,2]
[383792897,1757118640424,-151.45,0.0007999,120]
[383792899,1757118640434,-175.1812116,0.00079999,120]
[383792900,1757118640443,-369.22641646,0.00079999,120]
[383792903,1757118640453,-530.88737779,0.00079999,120]
[383792905,1757118640462,-736.51010292,0.0008,120]
[383792907,1757118640472,-1000.0,0.0008,120]
[383792909,1757118640481,-200.0,0.0008,8]
[383792911,1757118640491,-15685.48208583,0.0008,30]
[383792913,1757118640500,-201304.13971447,0.0008,15]
[383792915,1757118640516,-833493.184187,0.0008,15]
[383792952,1757118640871,-22223.0808252,0.0008,15]
[383792956,1757118640896,-400.0,0.00038458,10]
[383792958,1757118640906,-16073.91192694,0.0008,15]
[383792960,1757118640918,-276.640958,0.0008,15]
[383792962,1757118640929,-1578.44,0.0008,15]
[383792986,1757118641142,-163.0,0.00038,120]
[383792988,1757118641152,-400.0,0.00038184,10]
[383792990,1757118641162,-400.0,0.00038184,10]
[383792992,1757118641171,-400.0,0.00038184,10]
[383792994,1757118641180,-249.35505936,0.00038732,10]
[383792996,1757118641189,-163.0,0.000482,120]
[383792998,1757118641199,-288.62743446,0.0006499,7]
[383793000,1757118641209,-288.62743446,0.0007999,7]
[383793002,1757118641219,-288.62743446,0.0007999,7]
[383793004,1757118641232,-1351.52029354,0.0008,15]
[383793006,1757118641244,-2787.83994674,0.0008,15]
[383793009,1757118641255,-14577.62600852,0.0008,15]
[383793014,1757118641297,-29.85268005,0.00038184,10]
[383793084,1757118642074,-370.14731995,0.00038184,10]
[383793086,1757118642084,-35175.06814492,0.0008,15]
[383793183,1757118643001,-299.38574942,0.0003808,2]
[383793185,1757118643011,-500.0,0.00038184,2]
[383793187,1757118643020,-400.0,0.00038184,10]
[383793189,1757118643029,-500.0,0.00038184,2]
[383793191,1757118643039,-400.0,0.00038184,10]
[383793193,1757118643048,-500.0,0.00038184,2]
[383793195,1757118643057,-500.0,0.00038184,2]
[383793197,1757118643067,-500.0,0.00038184,2]
[383793199,1757118643076,-400.0,0.00038184,10]
[383793201,1757118643085,-107.97431233,0.00038184,2]
[383793230,1757118643351,-392.02568767,0.00038184,2]
[383793232,1757118643360,-21.62107233,0.00038184,2]
[383793234,1757118643371,-478.37892767,0.00038184,2]
[383793236,1757118643380,-500.0,0.00038184,2]
[383793238,1757118643389,-163.0,0.000583,120]
[383793240,1757118643399,-163.0,0.000685,120]
[383793243,1757118643408,-642472.79578628,0.0008,15]
[383793248,1757118643453,-60930.43927198,0.0008,15]
[383793251,1757118643469,-500.0,0.00038184,2]
[383793253,1757118643479,-3439.59089149,0.0008,15]
[383793255,1757118643490,-23431.30759823,0.0008,15]
[383793266,1757118643578,-1802.98592878,0.0008,15]
[383793507,1757118645929,-562.22468923,0.00038184,2]
[383793509,1757118645940,-400.0,0.00038184,10]
[383793511,1757118645949,-163.0,0.000787,120]
[383793513,1757118645959,-82951.01989203,0.0008,15]
[383793516,1757118645972,-32968.1501765,0.0008,15]
[383794815,1757118738871,500.0,0.00033312,7]
[383794817,1757118871418,150.0,0.000265,2]
[383794818,1757118871815,150.0,0.0002768,2]
[383794819,1757118872193,150.0,0.0002887,2]
[383794820,1757118954348,375.76935008,0.000249,2]
[383794821,1757118956627,163.38,0.00027824,2]
[383794822,1757118956772,163.38,0.00030606,2]
[383794823,1757118956995,163.38,0.00033389,2]
[383794824,1757118988000,165.52,0.00031203,2]
[383794825,1757119037242,500.0,0.00034629,7]
[383794826,1757119131841,206.11641776,0.000249,2]
[383794827,1757119215062,160.4,0.0001711,2]
[383794828,1757119317787,155.04,0.00013699,2]
[383794829,1757119318008,155.04,0.00026027,2]
[383794833,1757119638718,500.0,0.00031388,7]
[383794834,1757119639672,500.0,0.00034781,7]
[383794835,1757119679726,800.0,0.00035,2]
[383794839,1757119750229,-163.38,0.00036171,2]
[383794840,1757119750259,-176.88013964,0.00037175,2]
[383794841,1757119750280,-10523.34,0.00037212,2]
[383794842,1757119750301,-5000.0,0.00037306,2]
[383794843,1757119750323,-666.0,0.00037394,3]
[383794844,1757119750344,-160.0,0.00037435,7]
[383794845,1757119750365,-223.88,0.00037474,2]
[383794846,1757119750386,-150.0,0.00037661,2]
[383794847,1757119750406,-152.12,0.00037788,30]
[383794848,1757119750427,-500.0,0.000379,2]
[383794849,1757119750447,-217.49708558,0.000379,2]
[383794850,1757119750470,-217.49708556,0.00037992,2]
[383794851,1757119750490,-171.0,0.00038,120]
[383794852,1757119750512,-162.0,0.00038,120]
[383794853,1757119750533,-1600.0,0.00038083,3]
[383794854,1757119750554,-217.49708556,0.00038083,2]
[383794855,1757119750575,-242.502,0.00038084,50]
[383794856,1757119750596,-188.39100637,0.00038084,2]
[383794857,1757119750616,-14430.41069729,0.00038084,2]
[383794858,1757119751093,-16599.91460271,0.00038084,2]
[383794859,1757119751114,-500.0,0.00038118,7]
[383794860,1757119751137,-459.44,0.00038174,3]
[383794861,1757119751160,-11935.9347536,0.00038174,3]
[383794862,1757119751181,-241.75262234,0.00038182,15]
[383794863,1757119751203,-169.22683563,0.00038182,15]
[383794864,1757119751224,-400.0,0.00038183,10]
[383794865,1757119751250,-400.0,0.00038183,10]
[383794866,1757119751274,-400.0,0.00038183,10]
[383794867,1757119751295,-400.0,0.00038183,10]
[383794868,1757119751317,-400.0,0.00038183,10]
[383794869,1757119751338,-400.0,0.00038183,10]
[383794870,1757119751357,-400.0,0.00038183,10]
[383794871,1757119751378,-400.0,0.00038183,10]
[383794872,1757119751398,-400.0,0.00038183,10]
[383794873,1757119751419,-400.0,0.00038183,10]
[383794874,1757119751440,-400.0,0.00038183,10]
[383794875,1757119751461,-400.0,0.00038183,10]
[383794876,1757119751482,-400.0,0.00038183,10]
[383794877,1757119751503,-400.0,0.00038183,10]
[383794878,1757119751527,-513.09179403,0.00038183,10]
[383794879,1757119751548,-400.0,0.00038183,10]
[383794880,1757119751569,-400.0,0.00038183,10]
[383794881,1757119751590,-400.0,0.00038183,10]
[383794882,1757119751611,-400.0,0.00038183,10]
[383794883,1757119751633,-400.0,0.00038183,10]
[383794884,1757119751654,-400.0,0.00038183,10]
[383794885,1757119751675,-400.0,0.00038183,10]
[383794886,1757119751696,-400.0,0.00038183,10]
[383794887,1757119751717,-400.0,0.00038183,10]
[383794888,1757119751741,-400.0,0.00038183,10]
[383794889,1757119751765,-400.0,0.00038183,10]
[383794890,1757119751787,-400.0,0.00038183,10]
[383794891,1757119751810,-154.108433,0.00038183,10]
[383794892,1757119751831,-153.799334,0.00038183,10]
[383794893,1757119751852,-158.838294,0.00038183,10]
[383794894,1757119751876,-33.79304974,0.00038183,10]
[383794895,1757119755156,-366.20695026,0.00038183,10]
[383794896,1757119755179,-164.636229,0.00038183,10]
[383794897,1757119755200,-400.0,0.00038183,10]
[383794898,1757119755222,-400.0,0.00038183,10]
[383794899,1757119755248,-400.0,0.00038183,10]
[383794900,1757119755449,-400.0,0.00038183,10]
[383794901,1757119755471,-400.0,0.00038183,10]
[383794902,1757119755490,-401.45982049,0.00038183,10]
[383794903,1757119755509,-400.0,0.00038183,10]
[383794904,1757119755528,-400.0,0.00038183,10]
[383794905,1757119755548,-400.0,0.00038183,10]
[383794906,1757119755568,-400.0,0.00038183,10]
[383794907,1757119755590,-400.0,0.00038183,10]
[383794908,1757119755610,-400.0,0.00038183,10]
[383794909,1757119755631,-400.0,0.00038183,10]
[383794910,1757119755652,-400.0,0.00038183,10]
[383794911,1757119755673,-400.0,0.00038183,10]
[383794912,1757119755698,-400.0,0.00038183,10]
[383794913,1757119755719,-400.0,0.00038183,10]
[383794914,1757119755738,-400.0,0.00038183,10]
[383794915,1757119755758,-400.0,0.00038183,10]
[383794916,1757119755779,-400.0,0.00038183,10]
[383794917,1757119755800,-400.0,0.00038183,10]
[383794918,1757119755821,-400.0,0.00038183,10]
[383794919,1757119755841,-400.0,0.00038183,10]
[383794920,1757119755862,-400.0,0.00038183,10]
[383794921,1757119755882,-400.0,0.00038183,10]
[383794922,1757119755902,-400.0,0.00038183,10]
[383794923,1757119755922,-400.0,0.00038183,10]
[383794924,1757119755941,-400.0,0.00038183,10]
[383794925,1757119755964,-400.0,0.00038183,10]
[383794926,1757119755989,-502.88523031,0.00038183,10]
[383794927,1757119756010,-258.27038194,0.00038183,10]
[383794928,1757119756031,-281.84167002,0.00038183,10]
[383794929,1757119756051,-400.0,0.00038183,10]
[383794930,1757119756071,-400.0,0.00038183,10]
[383794931,1757119756092,-400.0,0.00038183,10]
[383794932,1757119756114,-400.0,0.00038183,10]
[383794933,1757119756135,-400.0,0.00038183,10]
[383794934,1757119756157,-400.0,0.00038183,10]
[383794935,1757119756178,-400.0,0.00038183,10]
[383794936,1757119756198,-400.0,0.00038183,10]
[383794937,1757119756222,-400.0,0.00038183,10]
[383794938,1757119756245,-400.0,0.00038183,10]
[383794939,1757119756266,-266.0582769,0.00038183,10]
[383794940,1757119756288,-400.0,0.00038183,10]
[383794941,1757119756309,-400.0,0.00038183,10]
[383794942,1757119756332,-400.0,0.00038183,10]
[383794943,1757119756352,-400.0,0.00038183,10]
[383794944,1757119756372,-400.0,0.00038183,10]
[383794945,1757119756392,-400.0,0.00038183,10]
[383794946,1757119756415,-400.0,0.00038183,10]
[383794947,1757119756438,-400.0,0.00038183,10]
[383794948,1757119756459,-400.0,0.00038183,10]
[383794949,1757119756480,-400.0,0.00038183,10]
[383794950,1757119756501,-400.0,0.00038183,10]
[383794951,1757119756521,-399.81273864,0.00038183,10]
[383794952,1757119756543,-400.0,0.00038183,10]
[383794953,1757119756564,-501.47140835,0.00038183,10]
[383794954,1757119756584,-400.0,0.00038183,10]
[383794955,1757119756605,-400.0,0.00038183,10]
[383794956,1757119756625,-400.0,0.00038183,10]
[383794957,1757119756646,-400.0,0.00038183,10]
[383794958,1757119756666,-400.0,0.00038183,10]
[383794959,1757119756686,-400.0,0.00038183,10]
[383794960,1757119756707,-362.24910393,0.00038183,10]
[383794961,1757119765206,-398.46097142,0.00038018,2]
[383794962,1757119765227,-37.75089607,0.00038183,10]
[383794963,1757119765250,-400.0,0.00038183,10]
[383794964,1757119765271,-400.0,0.00038183,10]
[383794965,1757119765293,-400.0,0.00038183,10]
[383794966,1757119765314,-400.0,0.00038183,10]
[383794967,1757119765336,-400.0,0.00038183,10]
[383794968,1757119765358,-400.0,0.00038183,10]
[383794969,1757119765383,-400.0,0.00038183,10]
[383794970,1757119765406,-400.0,0.00038183,10]
[383794971,1757119765427,-400.0,0.00038183,10]
[383794972,1757119765447,-400.0,0.00038183,10]
[383794973,1757119765469,-400.0,0.00038183,10]
[383794974,1757119765490,-400.0,0.00038183,10]
[383794975,1757119765512,-400.0,0.00038183,10]
[383794976,1757119765533,-400.0,0.00038183,10]
[383794977,1757119765554,-400.0,0.00038183,10]
[383794978,1757119765587,-400.0,0.00038183,10]
[383794979,1757119765616,-400.0,0.00038183,10]
[383794980,1757119765643,-400.0,0.00038183,10]
[383794981,1757119765665,-400.0,0.00038183,10]
[383794982,1757119765689,-400.0,0.00038183,10]
[383794983,1757119765711,-400.0,0.00038183,10]
[383794984,1757119765917,-400.0,0.00038183,10]
[383794985,1757119765938,-400.0,0.00038183,10]
[383794986,1757119765962,-400.0,0.00038183,10]
[383794987,1757119765986,-400.0,0.00038183,10]
[383794988,1757119766011,-400.0,0.00038183,10]
[383794989,1757119766031,-400.0,0.00038183,10]
[383794990,1757119766052,-400.0,0.00038183,10]
[383794991,1757119766072,-400.0,0.00038183,10]
[383794992,1757119766092,-400.0,0.00038183,10]
[383794993,1757119766113,-400.0,0.00038183,10]
[383794994,1757119766133,-401.63934224,0.00038183,10]
[383794995,1757119766153,-400.0,0.00038183,10]
[383794996,1757119766174,-400.0,0.00038183,10]
[383794997,1757119766195,-400.0,0.00038183,10]
[383794998,1757119766215,-400.0,0.00038183,10]
[383794999,1757119766237,-400.0,0.00038183,10]
[383795000,1757119766262,-400.0,0.00038183,10]
[383795001,1757119766283,-400.0,0.00038183,10]
[383795002,1757119766305,-400.0,0.00038183,10]
[383795003,1757119766326,-401.94631343,0.00038183,10]
[383795004,1757119766347,-400.0,0.00038183,10]
[383795005,1757119766367,-400.0,0.00038183,10]
[383795006,1757119766389,-400.0,0.00038183,10]
[383795007,1757119766411,-400.0,0.00038183,10]
[383795008,1757119766433,-400.0,0.00038183,10]
[383795009,1757119766456,-401.34078434,0.00038183,10]
[383795010,1757119766478,-400.0,0.00038183,10]
[383795011,1757119766499,-400.0,0.00038183,10]
[383795012,1757119766523,-400.0,0.00038183,10]
[383795013,1757119766546,-400.0,0.00038183,10]
[383795014,1757119766567,-400.0,0.00038183,10]
[383795015,1757119766588,-400.0,0.00038183,10]
[383795016,1757119766609,-400.0,0.00038183,10]
[383795017,1757119766631,-400.0,0.00038183,10]
[383795018,1757119766652,-400.0,0.00038183,10]
[383795019,1757119766672,-400.0,0.00038183,10]
[383795020,1757119766693,-400.0,0.00038183,10]
[383795021,1757119766713,-400.0,0.00038183,10]
[383795022,1757119766733,-400.0,0.00038183,10]
[383795023,1757119766754,-400.0,0.00038183,10]
[383795024,1757119766775,-400.0,0.00038183,10]
[383795025,1757119766796,-400.0,0.00038183,10]
[383795026,1757119766818,-400.0,0.00038183,10]
[383795027,1757119766840,-400.0,0.00038183,10]
[383795028,1757119766861,-400.0,0.00038183,10]